Cogmind - Beta 16.1 @@@ ROGUE MODE // 2026.01.20 @ 09:13:02 Player: szymekc Result: Destroyed by 52-BD8(R) with Subdweller Laser Performance ------------- Evolutions (0) 0 Regions Visited (3) 600 Robots Destroyed (41) 205 Value Destroyed (1069) 1069 Prototype IDs (13) 260 Alien Tech Used (0) 0 Bonus (25) 25 TOTAL SCORE: 2159 Bonus ------- Follower Combat Kills 25 Cogmind --------- Core Integrity 0/250 Matter 235/300 Energy 194/200 System Corruption 0% Temperature Cool (6) Movement Treading (160) Location -10/Subcaves Parts ------- > --- POWER (1) -------- Subdweller Power Source > --- PROPULSION (2) --- Light Treads Spiked Treads > --- UTILITY (2) ------ (None) > --- WEAPON (2) ------- Battle Cannon Battle Cannon > --- INVENTORY (5) ---- Arachnoskeleton Gun Armor Subdweller Machine Gun Peak State ------------ > --- POWER ------------ Ion Engine > --- PROPULSION ------- Light Treads Light Treads > --- UTILITY ---------- Makeshift Heat Sink Large Storage Unit > --- WEAPON ----------- Beamcaster Light Cannon > --- INVENTORY -------- Ion Engine Light Angular Momentum Engine Light Treads Light Treads Improved Heat Sink Huge Storage Unit Seismic Detector ECM Suite Assault Rifle Assault Rifle Assault Rifle Assault Rifle Assault Rifle Light Assault Rifle Mining Laser [Rating: 16] Favorites ----------- Power Ion Engine Engine Ion Engine Propulsion Light Treads Treads Light Treads Wheel Subdweller Monowheel Utility Scrap Shield Device Seismic Detector Storage Large Storage Unit Protection Scrap Shield Weapon Subdweller Laser Energy Gun Subdweller Laser Ballistic Gun Assault Rifle Ballistic Cannon Light Cannon Special Weapon Mining Laser Build | -11 -10 -10 -10 ------- Run | Yrd Mat Min Sub Slots Evolved . | . . . . Power . | . . . . Propulsion . | . . . . Utility . | . . . . Weapon . | . . . . Parts Attached 34 | 8 5 4 17 Power 4 | 2 . . 2 Engine 4 | 2 . . 2 Core . | . . . . Reactor . | . . . . Propulsion 7 | 2 . . 5 Treads 5 | 2 . . 3 Leg . | . . . . Wheel 2 | . . . 2 Hover . | . . . . Flight . | . . . . Utility 8 | 2 2 2 2 Device 4 | 2 . 2 . Storage 2 | . 2 . . Processor . | . . . . Hackware . | . . . . Protection 2 | . . . 2 Artifact . | . . . . Weapon 15 | 2 3 2 8 Energy Gun 6 | . . 1 5 Energy Cannon . | . . . . Ballistic Gun 5 | 2 2 . 1 Ballistic Cannon 3 | . . 1 2 Launcher . | . . . . Special Weapon 1 | . 1 . . Impact Weapon . | . . . . Slashing Weapon . | . . . . Piercing Weapon . | . . . . Special Melee Weapon . | . . . . Unidentified Prototypes . | . . . . Parts Lost 5 | . . . 5 Power 2 | . . . 2 Propulsion 1 | . . . 1 Utility 2 | . . . 2 Weapon . | . . . . Highest Loss Streak 3 | . . . 3 To Critical Strikes . | . . . . Average Backups 7 | 1 10 14 5 Power . | . 1 2 . Propulsion 1 | . 1 2 . Utility 1 | . 1 3 . Weapon 4 | . 6 7 3 Tool/Special . | . . . . Unused Backups 11 | . . 2 9 Power 1 | . . . 1 Propulsion 1 | . . . 1 Utility 4 | . . 2 2 Weapon 5 | . . . 5 Tool/Special . | . . . . Average Slot Usage (%) 90 | . 100 100 85 Engine 13 | . 14 14 13 Treads 27 | . 28 28 27 Device 5 | . 14 14 1 Storage 5 | . 13 14 1 Protection 8 | . . . 12 Energy Gun 16 | . . 6 22 Ballistic Gun 6 | . 26 15 1 Ballistic Cannon 3 | . . 6 2 Special Weapon 1 | . 1 . 1 Peak Build Rating 16 | 9 9 16 16 Average Rating 11 | 5 7 11 12 On Entrance 7 | . 9 8 13 Avg Prop Armor Cover (%) . | . . . . Naked Turns . | . . . . Heaviest Build 90 | 9 90 34 88 Greatest Support 40 | 40 40 40 40 Greatest Overweight (x) 4 | . 2 . 4 Average Overweight (x) . | . . . . Largest Inventory Capacity 25 | 5 25 15 25 Average Capacity 9 | 5 16 15 6 Most Carried 15 | 3 15 15 15 Average Carried 8 | 1 10 14 5 Final Capacity 15 | 5 15 15 5 Final Carried 15 | 3 15 15 5 Class Distribution -------------------- 49% | Subdweller-Mutant 43% | Mutant 4% | Scavenger-Mutant Dominant Class ---------------- Mutant | -10/Materials Mutant | -10/Mines Subdweller-Mutant | -10/Subcaves Resources | -11 -10 -10 -10 ----------- Run | Yrd Mat Min Sub Matter Collected 1131 | 306 132 216 477 Remotely . | . . . . Salvage Created 1398 | 150 229 243 776 Parts 91 | 13 20 16 42 Haulers Intercepted 1 | . 1 . . Recyclers Shooed 1 | . 1 . . Parts Field Recycled . | . . . . Retrieved Matter . | . . . . Parts Self-Destructed 8 | . . . 8 Prevented . | . . . . Parts Restored . | . . . . Kills | -11 -10 -10 -10 ------- Run | Yrd Mat Min Sub Combat Hostiles Destroyed 33 | . 5 8 20 Guns 30 | . 5 6 19 Cannons 3 | . . 2 1 Classes Destroyed 9 | 3 3 . 3 Worker 2 | 1 . 1 . Tunneler 3 | 3 . . . Hauler 1 | . 1 . . Recycler 2 | 1 1 . . Swarmer 10 | . 3 3 4 Grunt 7 | . 2 5 . Sentry 1 | . . . 1 Artisan 1 | . . . 1 Subdweller 15 | . . . 15 Best Kill Streak 4 | 3 3 2 4 Combat Bots Only 4 | . 3 2 4 Max Kills in Single Turn 1 | 1 1 1 1 Gunslinging . | . . . . Exploded . | . . . . Melee . | . . . . Uniques/NPCs Destroyed . | . . . . Combat | -11 -10 -10 -10 -------- Run | Yrd Mat Min Sub Hostile Shots Fired 145 | . 12 36 97 Missed 45 | . 4 13 28 Hits 100 | . 8 23 69 Projectile 100 | . 8 23 69 AOE 5 | . . . 5 Critical Strikes 7 | . . 4 3 Damage Taken 1813 | . 68 261 1484 Core 250 | . 6 57 187 Absorbed by Shields . | . . . . Core Remaining (%) 100 | 100 . . . Volleys Fired 191 | 13 25 25 128 Largest 2 | 2 2 2 2 Hottest 135 | 40 100 105 135 Shots Fired 318 | 26 44 50 198 Gun 228 | 26 38 38 126 Cannon 42 | . . 12 30 Launcher . | . . . . Special 48 | . 6 . 42 Kinetic 136 | 26 38 38 34 Thermal 182 | . 6 12 164 Explosive . | . . . . Electromagnetic . | . . . . Robot Hit Streak 21 | 7 8 8 21 Robot Miss Streak 7 | 2 3 7 2 Penetration Max . | . . . . Secondary Targets 3 | . . 1 2 Max Gunslinging Chain 1 | . . 1 1 Shots Hit Robots 185 | 19 26 26 114 Core Hits 69 | 9 11 13 36 Critical Kills 1 | . 1 . . Critical Parts Destroyed 1 | . . . 1 Critical Strikes 6 | . 1 1 4 Burn 1 | . . 1 . Destroy 5 | . 1 . 4 Melee Attacks . | . . . . Impact . | . . . . Slashing . | . . . . Piercing . | . . . . Sneak Attacks . | . . . . Combat Hostiles . | . . . . Follow-up Attacks . | . . . . Damage Inflicted 3314 | 158 321 484 2351 Guns 2880 | 158 321 289 2112 Cannons 414 | . . 175 239 Explosions . | . . . . Melee . | . . . . Ramming 20 | . . 20 . Kinetic 1125 | 158 321 320 326 Thermal 2169 | . . 144 2025 Explosive . | . . . . Electromagnetic . | . . . . Impact . | . . . . Slashing . | . . . . Piercing . | . . . . Highest Corruption . | . . . . Average Corruption . | . . . . Corruption Purged . | . . . . Corruption Blocked . | . . . . Overload Shots . | . . . . Overflow Damage . | . . . . Projectiles . | . . . . Explosions . | . . . . Melee . | . . . . Knockbacks 8 | . . 5 3 Impact . | . . . . Kinetic 7 | . . 4 3 Secondary 1 | . . 1 . Self-Inflicted Damage . | . . . . Shots . | . . . . Rammed 5 | . . 5 . Targets Rammed 6 | . . 6 . Kicked . | . . . . Crushed 1 | . . 1 . Highest Temperature 144 | . 100 144 85 Average Temperature 34 | . 44 36 28 Received Heat Transfer 423 | . 6 156 261 Siege Activations . | . . . . Martial Activations . | . . . . Shielding Activations . | . . . . Robots Disrupted . | . . . . Combat Hostiles . | . . . . Robots Corrupted . | . . . . Combat Hostiles . | . . . . Parts Fried . | . . . . Impact Corruptions . | . . . . Robots Melted . | . . . . Combat Hostiles . | . . . . Parts Melted 3 | . . . 3 Heat Transferred 2856 | . . 333 2523 Parts Sabotaged . | . . . . Parts Stolen . | . . . . Parts Stripped . | . . . . Power Chain Reactions . | . . . . Alert | -11 -10 -10 -10 ------- Run | Yrd Mat Min Sub Maximum Alert Level . | . . . . Low Security (%) 100 | 100 100 100 . Level 1 . | . . . . Level 2 . | . . . . Level 3 . | . . . . Level 4 . | . . . . Level 5 . | . . . . High Security . | . . . . Max Security . | . . . . Peak Influence 85 | 10 85 65 . Initial 30 | . . 30 . Average 10 | 1 12 11 . Influence Increases 599 | 25 183 261 130 Destroy 0b10 Robot/C 380 | . 100 180 100 Destroy 0b10 Robot/NC 40 | 25 10 5 . Destroy Leader 62 | . 22 40 . Allied During Kill 6 | . . 6 . Successful Hack 31 | . 31 . . Disable Machine 15 | . . 15 . Destroy Structure 5 | . 5 . . Lose Combat Pursuer 60 | . 15 15 30 Influence Decreases 599 | 25 106 338 130 Entered New Map 47 | . . 47 . Time Decay 480 | 25 106 259 90 Lost Part 40 | . . . 40 Lost Ally 32 | . . 32 . Squads Dispatched 3 | . 3 . . Investigation 1 | . 1 . . Extermination . | . . . . Reinforcement 2 | . 2 . . Assault . | . . . . Garrison . | . . . . Intercept . | . . . . Searches Triggered . | . . . . Construction Impeded . | . . . . Haulers Reinforced . | . . . . Active Scanning Responses . | . . . . Cargo Convoy Interrupts . | . . . . Stealth | -11 -10 -10 -10 --------- Run | Yrd Mat Min Sub Distress Signals . | . . . . Communications Jammed . | . . . . Distress Signals . | . . . . Times Spotted 41 | . 10 9 22 Peak Tracking Total 6 | . 5 3 6 Tactical Retreats 3 | . 1 1 1 Traps | -11 -10 -10 -10 ------- Run | Yrd Mat Min Sub Traps Triggered 1 | . 1 . . Indirectly . | . . . . Trap Hack Attempts . | . . . . Triggered . | . . . . Disarmed . | . . . . Reprogrammed . | . . . . Reused . | . . . . Traps Extracted . | . . . . Installed . | . . . . Triggered . | . . . . Machines | -11 -10 -10 -10 ---------- Run | Yrd Mat Min Sub Machines Disabled 2 | . . 1 1 Max in Single Turn 1 | . . 1 1 Machines Repaired . | . . . . Machines Dismantled . | . . . . Machines Sabotaged . | . . . . Overloaded Fab Kills . | . . . . Hacking | -11 -10 -10 -10 --------- Run | Yrd Mat Min Sub Machines Accessed 7 | . 4 . 3 Terminals 3 | . 3 . . Fabricators . | . . . . Repair Stations . | . . . . Recycling Units 1 | . 1 . . Scanalyzers . | . . . . Garrison Access . | . . . . Total Hacks 17 | . 10 . 7 Successful 13 | . 6 . 7 Failed 4 | . 4 . . Catastrophic 1 | . 1 . . Database Lockouts . | . . . . Manual 6 | . 6 . . Terminals 7 | . 7 . . Fabricators . | . . . . Repair Stations . | . . . . Recycling Units 3 | . 3 . . Scanalyzers . | . . . . Garrison Access . | . . . . Terminal Hacks 8 | . 1 . 7 Record 5 | . . . 5 Open Door 1 | . . . 1 Hauler Manifests 1 | . 1 . . Proto ID Catalog 1 | . . . 1 Fabricator Hacks . | . . . . Repair Station Hacks . | . . . . Recycling Unit Hacks . | . . . . Scanalyzer . | . . . . Garrison Access Hacks . | . . . . Unauthorized Hacks 5 | . 5 . . Terminals 5 | . 5 . . Botnet 2 | . 2 . . Skim 3 | . 3 . . Fabricators . | . . . . Repair Stations . | . . . . Recycling Units . | . . . . Scanalyzers . | . . . . Garrison Access . | . . . . Data Cores Recovered . | . . . . Used . | . . . . Hacking Detections 4 | . 4 . . Full Trace Events 1 | . 1 . . Feedback Events . | . . . . Feedback Blocked . | . . . . Robot Schematics Acquired . | . . . . Robots Built . | . . . . Authchips . | . . . . Time . | . . . . Total Robot Build Rating . | . . . . Part Schematics Acquired . | . . . . Parts Built . | . . . . Authchips . | . . . . Time . | . . . . Total Part Build Rating . | . . . . Part Studies Acquired . | . . . . Parts Repaired . | . . . . Time . | . . . . Parts Recycled . | . . . . Recycled Matter . | . . . . Retrieved Matter . | . . . . Retrieved Components . | . . . . Parts Scanalyzed . | . . . . Part Schematics Acquired . | . . . . Parts Damaged . | . . . . Bothacking | -11 -10 -10 -10 ------------ Run | Yrd Mat Min Sub Used RIF Installer . | . . . . Robots Hacked . | . . . . Non-combat . | . . . . Combat . | . . . . Robot Hacks Applied . | . . . . Relay Couplers Released . | . . . . Fabnet Peak Effective % . | . . . . Robots Rewired . | . . . . Allies Hacked . | . . . . Hacks Repelled . | . . . . Allies | -11 -10 -10 -10 -------- Run | Yrd Mat Min Sub Total Allies 2 | . . 2 . Largest Group 2 | . . 2 . Highest-Rated Group 50 | . . 50 . Highest-Rated Ally 31 | . . 31 . Total Orders . | . . . . Ally Attacks 7 | . . 7 . Total Damage 85 | . . 85 . Kills 1 | . . 1 . Allies Corrupted . | . . . . Allies Melted . | . . . . Intel | -11 -10 -10 -10 ------- Run | Yrd Mat Min Sub Active Infowar (turns) 1926 | 50 492 1176 208 Terrain 52 | 36 16 . . Seismic 1926 | 50 492 1176 208 Robot Analysis Total . | . . . . Derelict Logs Recovered 1 | . . 1 . Drone Launches . | . . . . Drone Recoveries . | . . . . Exploration | -11 -10 -10 -10 ------------- Run | Yrd Mat Min Sub Turns Passed 6163 | 158 492 1473 4040 Spaces Moved 2918 | 71 205 718 1924 Core 2 | 2 . . . Treads 2872 | 69 205 718 1880 Legs . | . . . . Wheels 44 | . . . 44 Hover . | . . . . Flight . | . . . . Fastest Speed 50 | 50 160 160 130 Average Speed 161 | 156 185 160 159 Slowest Speed 340 | 160 320 160 340 Overloaded Moves . | . . . . Propulsion Burnouts . | . . . . Robots Hopped . | . . . . Potential Cave-ins . | . . . . Cave-ins Triggered . | . . . . Exploration Rate (%) 58 | 5 41 97 89 Regions Visited 3 Branch Regions 2 Pre-discovered Areas 1 | . . . 1 Known Exits Taken . | . . . . Unknown Exits Taken 3 | 1 1 1 . Scrap Searched 9 | . . 1 8 Spaces Dug 2 | . 2 . . Terrain Destroyed 6 | . 5 . 1 Melee . | . . . . Projectile 6 | . 5 . 1 AOE . | . . . . Terrain Rammed . | . . . . Walls Destroyed . | . . . . Machines Disabled . | . . . . Actions | -11 -10 -10 -10 --------- Run | Yrd Mat Min Sub Total 3946 | 93 258 993 2602 Wait 701 | . 9 227 465 Move 2915 | 70 204 717 1924 Hop . | . . . . Pick Up 38 | 2 13 6 17 Fast Attach 12 | 7 . . 5 Attach 2 | . . . 2 Detach . | . . . . Swap 47 | 1 6 6 34 Drop 26 | . 1 6 19 Fire 191 | 13 25 25 128 Melee . | . . . . Ram . | . . . . Kick . | . . . . Crush 6 | . . 6 . Escape Stasis . | . . . . Rewire . | . . . . Trap . | . . . . Miscellaneous 8 | . . . 8 Route ------- -11/Scrapyard -10/Materials (discovered 2 exits: [*Mat] / [*Min]) -10/Mines (discovered 3 exits: [*Mat x2] / *Sub) -10/Subcaves (discovered 2 exits: [*Mat x2]) History --------- Turn | Location | Event 40 | -11/Scrapyard | Discovered new exit (range 16) 159 | -11/Scrapyard | Entered Materials 320 | -10/Materials | Build established: Mutant 394 | -10/Materials | Discovered new exit (range 8) 640 | -10/Materials | Discovered new exit (range 8) 651 | -10/Materials | Entered Mines 784 | -10/Mines | Discovered new exit (range 10) 1279 | -10/Mines | Discovered new exit (range 10) 1286 | -10/Mines | Learned location of 1 exit from Materials 1838 | -10/Mines | Discovered new exit (range 14) 2124 | -10/Mines | Entered Subcaves 2263 | -10/Subcaves | Shifting Twisted Machinery released Sub. Laser 2468 | -10/Subcaves | Shifting Twisted Machinery released Sub. Laser 2573 | -10/Subcaves | Shifting Twisted Machinery released Battle Cannon 2719 | -10/Subcaves | Disturbed a concealed Subdweller 2780 | -10/Subcaves | A swath of the cavern ceiling suddenly collapsed 2802 | -10/Subcaves | A swath of the cavern ceiling suddenly collapsed 2940 | -10/Subcaves | Build established: Subdweller-Mutant 3293 | -10/Subcaves | Visited Clippyterm 3298 | -10/Subcaves | Learned location of Deep Caves (-7) 3298 | -10/Subcaves | Learned Factory stockpile data 4103 | -10/Subcaves | Core integrity fell below 50% 4151 | -10/Subcaves | Ambushed by angry Subdweller bent on revenge 4786 | -10/Subcaves | A Subdweller sparked back to life 4786 | -10/Subcaves | A Subdweller sparked back to life 4847 | -10/Subcaves | Found Prototype Leg 4855 | -10/Subcaves | Lost 3 parts (1p1n1u) 5068 | -10/Subcaves | Discovered new exit (range 8) 5331 | -10/Subcaves | Shifting Twisted Machinery released Shrapnel Trap 5334 | -10/Subcaves | Shifting Twisted Machinery released Sub. Laser 5456 | -10/Subcaves | Discovered new exit (range 9) 5563 | -10/Subcaves | Core integrity fell below 20% 5965 | -10/Subcaves | Visited 4L-MR0's lab 5972 | -10/Subcaves | Identified Arachnoskeleton 5985 | -10/Subcaves | Found Gun Armor 6157 | -10/Subcaves | Ambushed by Subdweller buried in earth 6164 | -10/Subcaves | Destroyed by 52-BD8(R) with Subdweller Laser Last Messages --------------- Flightbrick Gun Armor Tower Shield Power Bank Rainbow Chip Procsplitter VL-GR5's Exoskeleton "Deathgrip" Powered Cannon 05976_ 4L-MR0 mumbles: "I'm surprised some of them are even willing to come in here given their fear of my usual visitors." 05980_ Dropped Sub. Laser. 05980_ Testing Chamber breached. 05985_ Acquired Gun Armor. 05995_ 4L-MR0 mumbles: "Who knows where that last prototype ended up, probably tossed aside somewhere as if it were useless junk..." 06006_ Acquired 40 matter. 06146_ 8U-LZ2(R) knocked back. 06151_ Scrap Shield destroyed. 06158_ 52-BD8(R): "SLEEPOVER!" 06158_ 8U-LZ2(R) destroyed. Map ----- +----------------------------------------------------+ | ?????????????????????????????????????????????????? | | ?????????????????????????????????????????????????? | | ?????????????????????????????????????????????????? | | ?????????????????????????????????????????????????? | | ?????????????????????????? ???? ???????????? #??? | | ????????????????????????? ???? ??????# """"" ? | | #???????????????????????? #??? ?????? | | ???????????????????????? ##? ??????? | | ???????????????????????? #? ??????? " | | ????????????? ???? #? ???????# """ | | ????????????? ????# ## #??????????###? | | ????????????# ???## ??????????????? | | #??????????? ??## ???????????????? | | #??????????? ??# ????????????????? | | #??###??????? ??# ?????????????????? | | ##?# ##?????? ##?# #?????????????????? | | #?# #???????? ### ###???????????????? | | ### #??????????# ## ###?????????????? | | #?######??##?# ##????????????? | | ### ### #??# ##???????????? | | # ## % ###### ##??????????? | | ##; # ##### ##?????????# | | ## ## ### #### ;;#?# #???????### | | #########?## ## % & ### ##????###" | | ##????????# ## ## ###### #" | | ##???????## ## @ #### | | ##?????## ## #?# """ | | ##????# # #### ## """# | | ####### # ### * ###" "# | | ## #### # ; ## #"""# | | ##### ;R %## " # | | # #??#### ;% #### ## ## # ### | | ## #?????## #####??# ######?####?? | | ?## ## #??????## ;##??????# #???????????? | | ??## ######???????# ##????????## ##???????????? | | ???####????????????####??????????####????????????? | | ?????????????????????????????????????????????????? | | ?????????????????????????????????????????????????? | | ?????????????????????????????????????????????????? | | ?????????????????????????????????????????????????? | | ?????????????????????????????????????????????????? | | ?????????????????????????????????????????????????? | | ?????????????????????????????????????????????????? | | ?????????????????????????????????????????????????? | | ?????????????????????????????????????????????????? | | ?????????????????????????????????????????????????? | | ?????????????????????????????????????????????????? | | ?????????????????????????????????????????????????? | | ?????????????????????????????????????????????????? | | ?????????????????????????????????????????????????? | +----------------------------------------------------+ Best States ------------- Heat Dissipation 44 Energy Generation 10 Energy Capacity 250 Matter Stores 300 Matter Capacity 300 Sight Range 16 Terrain Scan Range 16 Terrain Scan Density 10 Armor Coverage 800 Evasion (%) 40 Recoil Reduction 2 Item Schematics ----------------- None Robot Schematics ------------------ None Fabricated ------------ Nothing Repaired ---------- Nothing Studied --------- None Alien Tech Used ----------------- None Achievements -------------- None Challenges ------------ None Game ------ Seed MicroLegBiocell Manual? 0 Play Time 00:27:02 Cumulative 1088.7 hours Start 2026.01.20 @ 08:50:33 End 2026.01.20 @ 09:13:02 Sessions 1 Manual Loads 0 Difficulty Rogue Special Mode None Game No. 327 Rogue 325 Adventurer 2 Explorer 0 Win Type - Total 79 Types 21/18/18/1/1/1/14/2/1/2 Lore% 97 Gallery% 95 Achievement% 84 Wizard Run 0 Options --------- Layout 0 ASCII 0 Keyboard 1 Movement Numpad Keybinds 0 Fullscreen 1 Font 24/Smallcaps Map View 76x50 Zoom Use 0% Tactical HUD 1 Map Filters NONE Filters NONE Steam 1 RUN: f8427ad4-485b-4551-a4e8-9b07da43e6f0